Cogmind - Beta 14 *** ADVENTURER MODE // 2024.10.15 @ 16:08:12 Player: Jefffff Result: Destroyed by G-47 Trooper with Particle Gun Performance ------------- Evolutions (3) 1500 Regions Visited (8) 1600 Robots Destroyed (102) 510 Value Destroyed (5322) 5322 Prototype IDs (1) 20 Alien Tech Used (0) 0 Bonus (2376) 2376 TOTAL SCORE: 11328 Bonus ------- High Alert Combat Kills 415 Follower Combat Kills 61 Entered Garrisons 400 Used RIF Installer 1500 Cogmind --------- Core Integrity 0/700 Matter 300/300 Energy 46/100 System Corruption 8% Temperature Cool (9) Movement Core (1650) Ox32 Location -7/Factory Parts ------- > --- POWER (1) -------- (None) > --- PROPULSION (4) --- (None) > --- UTILITY (5) ------ Huge Storage Unit Machine Analyzer Hardlight Generator Hacking Suite > --- WEAPON (3) ------- Heavy Ion Cannon Improved Datajack Heavy Mace > --- INVENTORY (25) --- Light Angular Momentum Engine Carbon-fiber Leg Carbon-fiber Leg Improved Heat Sink Huge Storage Unit Improved Terrain Scanner Energy Filter Shock Absorption System Relay Coupler [Swarmer] (55) Relay Coupler [Swarmer] (49) Relay Coupler [Cutter] (37) Relay Coupler [Cutter] (36) Relay Coupler [Brawler] (37) Relay Coupler [Brawler] (37) Relay Coupler [Duelist] (30) Relay Coupler [Sentry] (29) Relay Coupler [Sentry] (28) Relay Coupler [Hunter] (22) Relay Coupler [Hunter] (25) Relay Coupler [Heavy] (17) Relay Coupler [Heavy] (13) Relay Coupler [Behemoth] (11) Mining Laser Peak State ------------ > --- POWER ------------ Light Angular Momentum Engine > --- PROPULSION ------- Medium Treads Medium Treads Medium Treads Carbon-fiber Leg > --- UTILITY ---------- Improved Heat Sink Huge Storage Unit Improved Melee Analysis Suite Hacking Suite Relay Coupler [Grunt] > --- WEAPON ----------- Particle Gun Autogun Flak Gun > --- INVENTORY -------- Reinforced Ion Engine Carbon-fiber Leg Carbon-fiber Leg Improved Carbon-fiber Leg Improved Heat Sink Improved Heat Sink Huge Storage Unit Improved Melee Analysis Suite Energy Filter Hardlight Generator Relay Coupler [NC] Relay Coupler [Swarmer] Relay Coupler [Cutter] Relay Coupler [Cutter] Relay Coupler [Grunt] Relay Coupler [Brawler] Relay Coupler [Brawler] Relay Coupler [Sentry] Relay Coupler [Sentry] Relay Coupler [Hunter] Relay Coupler [Hunter] Relay Coupler [Heavy] Relay Coupler [Heavy] Corruption Screen Mining Laser [Rating: 50] Favorites ----------- Power Micro Fission Core Engine Light Ion Engine Power Core Micro Fission Core Propulsion Aluminum Leg Treads Medium Treads Leg Aluminum Leg Wheel Armored Huge Wheel Utility Huge Storage Unit Device Structural Scanner Storage Huge Storage Unit Processor Improved Melee Analysis Suite Hackware Hacking Suite Protection Medium Armor Plating Weapon Particle Gun Energy Gun Particle Gun Energy Cannon Beam Cannon Ballistic Gun Flak Gun Ballistic Cannon Light Cannon Impact Weapon Hammer Slashing Weapon Scythe Special Melee Weapon Improved Datajack Build | -11 -10 -9 -8 -8 -8 -7 -7 -7 ------- Run | Yrd Mat Mat Mat Gar Mat Fac Gar Fac Slots Evolved 6 | . . 2 2 . . 2 . . Power . | . . . . . . . . . Propulsion 2 | . . 1 1 . . . . . Utility 3 | . . . 1 . . 2 . . Weapon 1 | . . 1 . . . . . . Parts Attached 129 | 5 13 14 25 15 5 7 33 12 Power 20 | . 4 3 4 2 . 1 6 . Engine 14 | . 4 2 2 2 . 1 3 . Core 6 | . . 1 2 . . . 3 . Reactor . | . . . . . . . . . Propulsion 36 | 2 2 5 5 2 . . 17 3 Treads 6 | . . . . . . . 6 . Leg 23 | . 2 5 3 . . . 10 3 Wheel 7 | 2 . . 2 2 . . 1 . Hover . | . . . . . . . . . Flight . | . . . . . . . . . Utility 31 | 1 3 1 6 4 2 4 4 6 Device 7 | . 1 . 2 . 2 . 1 1 Storage 3 | 1 2 . . . . . . . Processor 6 | . . . 1 . . 2 . 3 Hackware 7 | . . . . . . 2 3 2 Protection 8 | . . 1 3 4 . . . . Artifact . | . . . . . . . . . Weapon 42 | 2 4 5 10 7 3 2 6 3 Energy Gun 16 | 2 . 1 2 6 2 . 3 . Energy Cannon 3 | . 2 . . . . . . 1 Ballistic Gun 10 | . 2 4 2 . . . 2 . Ballistic Cannon 3 | . . . 1 1 . . 1 . Launcher . | . . . . . . . . . Special Weapon . | . . . . . . . . . Impact Weapon 4 | . . . 1 . 1 1 . 1 Slashing Weapon 4 | . . . 4 . . . . . Piercing Weapon . | . . . . . . . . . Special Melee Weapon 2 | . . . . . . 1 . 1 Unidentified Prototypes 1 | . . 1 . . . . . . Parts Lost 34 | . 2 2 2 4 . . 14 10 Power 8 | . 1 2 . 1 . . 3 1 Propulsion 9 | . 1 . . . . . 4 4 Utility 7 | . . . 1 1 . . 1 4 Weapon 10 | . . . 1 2 . . 6 1 Highest Loss Streak 6 | . 1 1 2 1 . . 5 6 To Critical Strikes . | . . . . . . . . . Average Slot Usage (%) 90 | . 97 93 92 76 81 84 91 97 Engine 5 | . 14 7 5 8 9 7 2 . Core 2 | . . 2 3 . . . 4 6 Treads 3 | . . . . . . . 12 . Leg 15 | . 14 27 22 . . . 12 29 Wheel 6 | . 12 . 6 18 18 15 2 . Device 6 | . 12 5 8 . 9 10 4 1 Storage 9 | . 14 11 9 9 9 7 7 7 Processor 3 | . . . . 3 . 15 7 1 Hackware 7 | . . . . . . 4 17 25 Protection 3 | . . 5 9 14 8 . . . Energy Gun 6 | . 3 3 7 10 18 13 6 5 Energy Cannon 3 | . 11 11 4 . . . . . Ballistic Gun 7 | . 11 18 5 . . . 7 . Impact Weapon 2 | . . . . 9 9 7 1 6 Slashing Weapon 1 | . . . 9 . . . . . Special Melee Weapon 1 | . . . . . . 1 1 6 Peak Build Rating 50 | 5 8 19 38 39 39 45 50 49 Average Rating 31 | 4 7 13 27 34 37 44 44 45 On Entrance 24 | . 5 8 16 36 35 38 45 41 Naked Turns . | . . . . . . . . . Heaviest Build 110 | 7 89 101 106 110 104 100 100 102 Greatest Support 104 | 26 26 30 56 56 56 56 104 58 Greatest Overweight (x) 9 | . 4 4 3 3 1 1 3 9 Average Overweight (x) 1 | . 1 3 1 1 1 1 1 1 Largest Inventory Capacity 25 | 8 25 25 25 25 25 25 25 25 Average Capacity 23 | 7 16 25 25 25 25 25 25 25 Most Carried 25 | 5 12 25 25 25 25 25 25 25 Average Carried 21 | 4 9 21 24 22 25 24 24 24 Final Capacity 25 | 8 25 25 25 25 25 25 25 25 Final Carried 25 | 5 12 25 24 25 25 25 25 23 Class Distribution -------------------- 25% | Scavenger-Mutant 24% | Bothacker-Mutant 24% | Mutant 10% | Scavenger-Tank 5% | Skirmisher 5% | Scavenger-Gunner Dominant Class ---------------- Mutant | -10/Materials Skirmisher | -9/Materials Mutant | -8/Materials Mutant | -8/Garrison Bothacker-Mutant | -8/Materials Bothacker-Mutant | -7/Factory Scavenger-Mutant | -7/Garrison Bothacker-Mutant | -7/Factory Resources | -11 -10 -9 -8 -8 -8 -7 -7 -7 ----------- Run | Yrd Mat Mat Mat Gar Mat Fac Gar Fac Matter Collected 2692 | 193 252 299 496 383 121 . 865 83 Remotely . | . . . . . . . . . Salvage Created 4034 | . 516 605 782 523 311 16 1194 87 Parts 189 | . 27 41 39 13 21 2 43 3 Haulers Intercepted 4 | . 1 1 2 . . . . . Recyclers Shooed 2 | . 2 . . . . . . . Parts Field Recycled . | . . . . . . . . . Retrieved Matter . | . . . . . . . . . Parts Self-Destructed . | . . . . . . . . . Prevented . | . . . . . . . . . Kills | -11 -10 -9 -8 -8 -8 -7 -7 -7 ------- Run | Yrd Mat Mat Mat Gar Mat Fac Gar Fac Combat Hostiles Destroyed 89 | . 12 13 16 11 6 . 29 2 Melee 14 | . . . 5 2 . . 5 2 Guns 41 | . 4 6 8 3 6 . 14 . Cannons 26 | . 8 6 3 3 . . 6 . AOE 1 | . . . . . . . 1 . Classes Destroyed 14 | . 5 1 4 1 1 . 1 1 Worker 1 | . . . . . . . . 1 Hauler 4 | . 1 1 2 . . . . . Recycler 1 | . 1 . . . . . . . Mechanic 1 | . . . . . 1 . . . Operator 3 | . . . 2 . . 1 . . Watcher 3 | . 2 1 . . . . . . Swarmer 24 | . 6 2 4 . 1 . 11 . Grunt 42 | . 6 9 9 6 1 . 11 . Brawler 5 | . . . 1 3 1 . . . Duelist 3 | . . . 1 1 . . 1 . Sentry 7 | . . 2 . . 3 . 2 . Specialist 2 | . . . . . . . 2 . Hunter 2 | . . . 1 . . . 1 . Programmer 4 | . . . . 1 . . 1 2 Best Kill Streak 7 | . 3 5 7 4 3 1 7 1 Combat Bots Only 7 | . 3 5 7 4 2 . 7 1 Max Kills in Single Turn 2 | . 1 1 1 1 1 1 2 1 Gunslinging . | . . . . . . . . . Exploded 1 | . . . . . . . 1 . Melee 1 | . . . 1 1 . . 1 1 Uniques/NPCs Destroyed . | . . . . . . . . . Combat | -11 -10 -9 -8 -8 -8 -7 -7 -7 -------- Run | Yrd Mat Mat Mat Gar Mat Fac Gar Fac Hostile Shots Fired 832 | . 59 74 76 93 24 3 333 170 Missed 217 | . 12 25 12 23 9 2 88 46 Damage Taken 6631 | . 456 484 867 967 167 12 2635 1043 Core 1132 | . 129 50 137 82 31 . 443 260 Absorbed by Shields 236 | . . . . . . . . 236 Redirected to Shielding 6 | . . . . 4 2 . . . Ignored by Resistances 1935 | . 141 144 247 269 47 3 783 301 Regen/Repaired (Parts) 173 | . 173 . . . . . . . Core Remaining (%) 72 | 100 48 87 . . 54 . . . Volleys Fired 274 | . 40 29 49 37 21 2 86 10 Largest 3 | . 2 3 3 2 2 2 3 1 Hottest 148 | . 80 148 148 130 121 121 116 65 Shots Fired 534 | . 80 87 97 59 43 4 154 10 Gun 393 | . 40 58 74 40 43 4 130 4 Cannon 141 | . 40 29 23 19 . . 24 6 Launcher . | . . . . . . . . . Special . | . . . . . . . . . Kinetic 251 | . 40 51 41 19 . . 100 . Thermal 266 | . 40 36 56 40 26 4 54 10 Explosive . | . . . . . . . . . Electromagnetic 17 | . . . . . 17 . . . Robot Hit Streak 36 | . 11 17 33 16 17 8 36 6 Robot Miss Streak 5 | . 4 2 3 2 2 . 5 1 Penetration Max 1 | . . . . . . . 1 . Secondary Targets 3 | . . . . . 1 . 2 . Max Gunslinging Chain 1 | . . . . . 1 . 1 . Shots Hit Robots 463 | . 51 56 87 60 35 5 149 20 Core Hits 221 | . 19 23 34 15 13 1 113 3 Critical Kills 2 | . . 1 . 1 . . . . Critical Parts Destroyed 13 | . . . . 3 . . 6 4 Critical Strikes 33 | . . 2 3 6 3 . 15 4 Burn 10 | . . 1 1 . 3 . 5 . Meltdown 1 | . . 1 . . . . . . Blast 5 | . . . . 1 . . 4 . Smash 15 | . . . . 5 . . 6 4 Sever 2 | . . . 2 . . . . . Melee Attacks 128 | . . . 22 30 . 4 51 21 Impact 98 | . . . . 30 . 2 48 18 Slashing 22 | . . . 22 . . . . . Piercing . | . . . . . . . . . Sneak Attacks 4 | . . . 2 . . . 1 1 Combat Hostiles 1 | . . . . . . . 1 . Follow-up Attacks 3 | . . . 3 . . . . . Damage Inflicted 8797 | . 831 811 1680 1307 582 45 2933 608 Guns 4513 | . 308 453 827 525 582 45 1731 42 Cannons 1971 | . 523 358 246 224 . . 487 133 Explosions . | . . . . . . . . . Melee 2301 | . . . 607 546 . . 715 433 Ramming 12 | . . . . 12 . . . . Kinetic 2877 | . 308 379 392 224 . . 1574 . Thermal 3376 | . 523 432 681 525 351 45 644 175 Explosive . | . . . . . . . . . Electromagnetic 231 | . . . . . 231 . . . Impact 1694 | . . . . 546 . . 715 433 Slashing 607 | . . . 607 . . . . . Piercing . | . . . . . . . . . Highest Corruption 9 | . . . 6 9 9 . 1 8 Average Corruption 3 | . . . 5 7 9 . 1 2 Corruption Purged . | . . . . . . . . . Corruption Blocked . | . . . . . . . . . Effects 55 | . . . 1 28 10 . 9 7 Message Errors 12 | . . . . 5 2 . 2 3 Matter Fused 13 | . . . . 8 2 . 2 1 Heat Flow Errors 9 | . . . . 6 . . 2 1 Energy Discharges 7 | . . . . 2 4 . 1 . Parts Rejected 1 | . . . . 1 . . . . Data Loss (minor) 3 | . . . 1 . . . 1 1 Data Loss (major) 4 | . . . . 1 1 . 1 1 Misfires 4 | . . . . 3 1 . . . Weapon Failures 2 | . . . . 2 . . . . Overload Shots . | . . . . . . . . . Overflow Damage 508 | . . . 9 116 . . 164 219 Projectiles . | . . . . . . . . . Explosions . | . . . . . . . . . Melee 508 | . . . 9 116 . . 164 219 Knockbacks 11 | . . . . 4 . . 6 1 Impact 9 | . . . . 3 . . 5 1 Kinetic 2 | . . . . 1 . . 1 . Secondary . | . . . . . . . . . Self-Inflicted Damage 6 | . . . . 6 . . . . Shots . | . . . . . . . . . Rammed 2 | . . . . 2 . . . . Targets Rammed 2 | . . . . 2 . . . . Kicked . | . . . . . . . . . Crushed . | . . . . . . . . . Highest Temperature 560 | . 336 324 560 547 478 . 450 247 Average Temperature 152 | . 82 103 199 182 201 . 141 51 Received Heat Transfer 2488 | . 180 291 315 423 99 9 807 364 Effects 53 | . 4 2 23 17 3 . 4 . Shutdowns 12 | . 1 . 6 3 . . 2 . Energy Bleed 7 | . . . 2 3 1 . 1 . Interference 13 | . 3 2 5 3 . . . . Matter Decay 7 | . . . 4 2 1 . . . Short Circuit 4 | . . . 1 2 . . 1 . Damage (minor) 6 | . . . 1 4 1 . . . Damage (major) 4 | . . . 4 . . . . . Siege Activations . | . . . . . . . . . Robots Corrupted 7 | . . . . 3 . . 4 . Combat Hostiles 6 | . . . . 3 . . 3 . Parts Fried 7 | . . . . . . . 6 1 Impact Corruptions 22 | . . . . 5 . . 10 7 Robots Melted 1 | . . 1 . . . . . . Combat Hostiles 1 | . . 1 . . . . . . Parts Melted 9 | . . 2 . . 4 . 2 1 Heat Transferred 8214 | . 1110 999 1628 1110 1073 111 1887 296 Parts Sabotaged . | . . . . . . . . . Parts Stolen . | . . . . . . . . . Parts Stripped . | . . . . . . . . . Power Chain Reactions . | . . . . . . . . . Alert | -11 -10 -9 -8 -8 -8 -7 -7 -7 ------- Run | Yrd Mat Mat Mat Gar Mat Fac Gar Fac Peak Influence 1360 | . 238 278 211 552 451 211 1360 661 Initial 618 | . . . 28 117 231 175 130 618 Average 382 | . 95 80 87 335 359 186 785 520 Maximum Alert Level 4 | . 1 1 1 2 2 1 4 2 Low Security (%) 45 | 100 95 93 87 12 . 82 3 9 Level 1 16 | . 4 6 12 54 73 17 14 . Level 2 18 | . . . . 32 26 . 17 90 Level 3 12 | . . . . . . . 40 . Level 4 7 | . . . . . . . 23 . Level 5 . | . . . . . . . . . High Security . | . . . . . . . . . Max Security . | . . . . . . . . . Squads Dispatched 15 | . 2 . 4 . . 3 . 6 Investigation 4 | . 2 . . . . 1 . 1 Extermination 3 | . . . . . . 1 . 2 Reinforcement 5 | . . . 2 . . 1 . 2 Assault . | . . . . . . . . . Garrison 3 | . . . 2 . . . . 1 Intercept . | . . . . . . . . . Searches Triggered . | . . . . . . . . . Construction Impeded . | . . . . . . . . . Haulers Reinforced . | . . . . . . . . . Active Scanning Responses . | . . . . . . . . . Cargo Convoy Interrupts . | . . . . . . . . . Stealth | -11 -10 -9 -8 -8 -8 -7 -7 -7 --------- Run | Yrd Mat Mat Mat Gar Mat Fac Gar Fac Distress Signals 7 | . 2 2 1 . 1 . . 1 Communications Jammed . | . . . . . . . . . Distress Signals . | . . . . . . . . . Times Spotted 134 | . 18 16 24 11 9 3 38 15 Peak Tracking Total 8 | . 3 5 4 4 5 3 5 8 Tactical Retreats 8 | . 1 . 1 1 1 . 4 . Traps | -11 -10 -9 -8 -8 -8 -7 -7 -7 ------- Run | Yrd Mat Mat Mat Gar Mat Fac Gar Fac Traps Triggered 14 | . 3 . . 5 . 1 5 . Indirectly . | . . . . . . . . . Trap Hack Attempts . | . . . . . . . . . Triggered . | . . . . . . . . . Disarmed . | . . . . . . . . . Reprogrammed . | . . . . . . . . . Reused . | . . . . . . . . . Traps Extracted . | . . . . . . . . . Installed . | . . . . . . . . . Triggered 1 | . . . . . . . 1 . Machines | -11 -10 -9 -8 -8 -8 -7 -7 -7 ---------- Run | Yrd Mat Mat Mat Gar Mat Fac Gar Fac Machines Disabled 11 | . 1 1 . 4 . . 5 . Max in Single Turn 1 | . 1 1 . 1 . . 1 . Garrison Relay 9 | . . . . 4 . . 5 . Machines Repaired . | . . . . . . . . . Machines Dismantled . | . . . . . . . . . Machines Sabotaged . | . . . . . . . . . Overloaded Fab Kills . | . . . . . . . . . Hacking | -11 -10 -9 -8 -8 -8 -7 -7 -7 --------- Run | Yrd Mat Mat Mat Gar Mat Fac Gar Fac Machines Accessed 23 | . 8 2 4 1 1 1 3 3 Terminals 18 | . 7 2 3 1 1 . 3 1 Fabricators 1 | . . . . . . . . 1 Repair Stations 1 | . 1 . . . . . . . Recycling Units . | . . . . . . . . . Scanalyzers 1 | . . . . . . . . 1 Garrison Access 2 | . . . 1 . . 1 . . Total Hacks 65 | . 23 12 12 1 2 1 5 9 Successful 38 | . 14 7 6 . 1 1 1 8 Failed 27 | . 9 5 6 1 1 . 4 1 Catastrophic 4 | . 1 1 . 1 1 . . . Database Lockouts . | . . . . . . . . . Manual 42 | . 19 8 11 1 2 . . 1 Terminals 54 | . 19 12 11 1 2 . 5 4 Fabricators 3 | . . . . . . . . 3 Repair Stations 4 | . 4 . . . . . . . Recycling Units . | . . . . . . . . . Scanalyzers 2 | . . . . . . . . 2 Garrison Access 2 | . . . 1 . . 1 . . Terminal Hacks 12 | . 2 5 2 . . . 1 2 Record 1 | . . 1 . . . . . . Robot Analysis 1 | . . 1 . . . . . . Branch Access Points 1 | . 1 . . . . . . . Emergency Access Points 2 | . . 2 . . . . . . Terminal Index 2 | . 1 . 1 . . . . . Unreport Threat 2 | . . . . . . . . 2 Transport Status 1 | . . . 1 . . . . . Hauler Manifests 1 | . . 1 . . . . . . Security Stations 1 | . . . . . . . 1 . Fabricator Hacks 3 | . . . . . . . . 3 Network Status 1 | . . . . . . . . 1 Load Schematic 1 | . . . . . . . . 1 Build 1 | . . . . . . . . 1 Repair Station Hacks 4 | . 4 . . . . . . . Scan Component 2 | . 2 . . . . . . . Repair 2 | . 2 . . . . . . . Recycling Unit Hacks . | . . . . . . . . . Scanalyzer 2 | . . . . . . . . 2 Insert Component 1 | . . . . . . . . 1 Analyze 1 | . . . . . . . . 1 Garrison Access Hacks 2 | . . . 1 . . 1 . . Unlock Access 2 | . . . 1 . . 1 . . Unauthorized Hacks 15 | . 8 2 3 . 1 . . 1 Terminals 15 | . 8 2 3 . 1 . . 1 Track 1 | . 1 . . . . . . . Assimilate 1 | . . . 1 . . . . . Botnet 13 | . 7 2 2 . 1 . . 1 Fabricators . | . . . . . . . . . Repair Stations . | . . . . . . . . . Recycling Units . | . . . . . . . . . Scanalyzers . | . . . . . . . . . Garrison Access . | . . . . . . . . . Data Cores Recovered 1 | . . . 1 . . . . . Used . | . . . . . . . . . Hacking Detections 20 | . 8 2 3 1 1 . 2 3 Full Trace Events 2 | . 1 . . . . . . 1 Feedback Events . | . . . . . . . . . Feedback Blocked . | . . . . . . . . . Robot Schematics Acquired . | . . . . . . . . . Robots Built . | . . . . . . . . . Authchips . | . . . . . . . . . Time . | . . . . . . . . . Total Robot Build Rating . | . . . . . . . . . Part Schematics Acquired 1 | . . . . . . . . 1 Parts Built 2 | . . . . . . . . 2 Authchips . | . . . . . . . . . Time 73 | . . . . . . . . 73 Total Part Build Rating 6 | . . . . . . . . 6 Parts Repaired 2 | . 2 . . . . . . . Time 52 | . 52 . . . . . . . Parts Recycled . | . . . . . . . . . Recycled Matter . | . . . . . . . . . Retrieved Matter . | . . . . . . . . . Retrieved Components . | . . . . . . . . . Parts Scanalyzed 1 | . . . . . . . . 1 Part Schematics Acquired 1 | . . . . . . . . 1 Parts Damaged . | . . . . . . . . . Bothacking | -11 -10 -9 -8 -8 -8 -7 -7 -7 ------------ Run | Yrd Mat Mat Mat Gar Mat Fac Gar Fac Used RIF Installer 3 | . . . . 2 . . 1 . Hotswap 1 | . . . . 1 . . . . Autooverride 1 | . . . . . . . 1 . Robots Hacked 8 | . . . . . . 2 3 3 Non-combat . | . . . . . . . . . Combat 8 | . . . . . . 2 3 3 Autooverrided 1 | . . . . . . . 1 . Robot Hacks Applied 7 | . . . . . . 2 2 3 formatsys_high 7 | . . . . . . 2 2 3 Relay Couplers Released 41 | . . . . 17 . . 24 . Machine Destruction 38 | . . . . 17 . . 21 . Programmers 3 | . . . . . . . 3 . Attached 4 | . . . . . . 1 3 . Fabnet Peak Effective % . | . . . . . . . . . Robots Rewired . | . . . . . . . . . Allies Hacked . | . . . . . . . . . Hacks Repelled . | . . . . . . . . . Allies | -11 -10 -9 -8 -8 -8 -7 -7 -7 -------- Run | Yrd Mat Mat Mat Gar Mat Fac Gar Fac Total Allies 8 | . . . . . . 2 3 3 Largest Group 4 | . . . . . . 2 4 3 Highest-Rated Group 64 | . . . . . . 32 64 48 Highest-Rated Ally 16 | . . . . . . 16 16 16 Total Orders . | . . . . . . . . . Ally Attacks 56 | . . . . . . . 31 25 Total Damage 471 | . . . . . . . 249 222 Kills 2 | . . . . . . . 1 1 Allies Corrupted . | . . . . . . . . . Allies Melted . | . . . . . . . . . Intel | -11 -10 -9 -8 -8 -8 -7 -7 -7 ------- Run | Yrd Mat Mat Mat Gar Mat Fac Gar Fac Robot Analysis Total 1 | . . 1 . . . . . . Derelict Logs Recovered . | . . . . . . . . . Drone Launches . | . . . . . . . . . Drone Recoveries . | . . . . . . . . . Exploration | -11 -10 -9 -8 -8 -8 -7 -7 -7 ------------- Run | Yrd Mat Mat Mat Gar Mat Fac Gar Fac Turns Passed 7526 | 67 973 980 1139 759 255 306 2345 702 Spaces Moved 3177 | 63 483 232 467 423 126 240 889 254 Core 7 | 7 . . . . . . . . Treads 429 | . . . . . . . 429 . Legs 1077 | . 123 232 225 . . . 243 254 Wheels 1664 | 56 360 . 242 423 126 240 217 . Hover . | . . . . . . . . . Flight . | . . . . . . . . . Fastest Speed 50 | 50 90 330 115 115 115 115 115 190 Average Speed 182 | 85 156 359 185 115 115 115 210 200 Slowest Speed 750 | 100 400 400 330 145 115 115 260 750 Overloaded Moves . | . . . . . . . . . Propulsion Burnouts . | . . . . . . . . . Robots Hopped . | . . . . . . . . . Cave-ins Triggered 1 | . . . . . . . . 1 Exploration Rate (%) 29 | 4 81 26 20 47 10 5 69 6 Regions Visited 8 Branch Regions . Pre-discovered Areas . | . . . . . . . . . Known Exits Taken 2 | . . . 1 . . 1 . . Unknown Exits Taken 4 | 1 1 1 . . 1 . . . Scrap Searched . | . . . . . . . . . Spaces Dug 14 | . . . 1 . . 1 3 9 Terrain Destroyed 14 | . . . 1 . . 1 3 9 Melee 14 | . . . 1 . . 1 3 9 Projectile . | . . . . . . . . . AOE . | . . . . . . . . . Terrain Rammed . | . . . . . . . . . Walls Destroyed . | . . . . . . . . . Machines Disabled . | . . . . . . . . . Actions | -11 -10 -9 -8 -8 -8 -7 -7 -7 --------- Run | Yrd Mat Mat Mat Gar Mat Fac Gar Fac Total 4268 | 73 625 318 639 588 195 264 1160 406 Wait 270 | . 57 18 20 6 40 . 29 100 Move 3170 | 62 482 231 467 422 125 239 888 254 Hop . | . . . . . . . . . Pick Up 127 | 6 20 18 24 20 1 6 28 4 Fast Attach 28 | 4 3 2 4 4 . . 8 3 Attach 31 | 1 3 3 5 5 . 2 9 3 Detach . | . . . . . . . . . Swap 70 | . 7 9 16 6 5 5 16 6 Drop 113 | . 13 8 36 16 3 6 26 5 Fire 274 | . 40 29 49 37 21 2 86 10 Melee 124 | . . . 18 30 . 4 51 21 Ram 2 | . . . . 2 . . . . Kick . | . . . . . . . . . Crush . | . . . . . . . . . Escape Stasis 59 | . . . . 40 . . 19 . Rewire . | . . . . . . . . . Trap . | . . . . . . . . . Miscellaneous . | . . . . . . . . . Route ------- -11/Scrapyard -10/Materials (discovered 3 exits: *Mat x2 / *Min) -9/Materials -8/Materials -8/Garrison -8/Materials -7/Factory (discovered 2 exits: [*Low] / Gar) -7/Garrison (discovered 3 exits: *Fac x3) -7/Factory (discovered 1 exit: [*Fac]) History --------- Turn | Location | Event 25 | -11/Scrapyard | Discovered new exit (range 12) 68 | -11/Scrapyard | Entered Materials 194 | -10/Materials | Discovered new exit (range 10) 331 | -10/Materials | Build established: Mutant 349 | -10/Materials | Discovered new exit (range 10) 366 | -10/Materials | Identified exit to Mines 724 | -10/Materials | Repaired Beam Cannon 751 | -10/Materials | Repaired Assault Rifle 906 | -10/Materials | Core integrity fell below 50% 933 | -10/Materials | Discovered new exit (range 16) 1041 | -10/Materials | Entered another Materials area 1041 | -9/Materials | Evolved 2 slots: Propulsion x1, Weapon x1 1347 | -9/Materials | Build established: Skirmisher 1750 | -9/Materials | Discovered new exit (range 16) 2021 | -9/Materials | Entered another Materials area 2021 | -8/Materials | Evolved 2 slots: Propulsion x1, Utility x1 2121 | -8/Materials | Build established: Scavenger-Tank 2323 | -8/Materials | Destroyed 7 combat bots 2324 | -8/Materials | Garrison activated, responded to threat 3072 | -8/Materials | Build established: Mutant 3082 | -8/Materials | Garrison activated, responded to threat 3160 | -8/Materials | Identified exit to Garrison 3160 | -8/Materials | Entered Garrison 3182 | -8/Garrison | Triggered checkpoint 3233 | -8/Garrison | Installed Relay Interface Framework 3255 | -8/Garrison | Garrison Relay disabled 3292 | -8/Garrison | Expanded RIF knowledge: Hotswap 3394 | -8/Garrison | Triggered checkpoint 3641 | -8/Garrison | Garrison Relay disabled 3648 | -8/Garrison | Triggered checkpoint 3722 | -8/Garrison | Garrison Relay disabled 3822 | -8/Garrison | Garrison Relay disabled 3908 | -8/Garrison | Discovered new exit (range 10) 3919 | -8/Garrison | Entered Materials 4065 | -8/Materials | Build established: Bothacker-Mutant 4165 | -8/Materials | Discovered new exit (range 8) 4174 | -8/Materials | Entered Factory 4174 | -7/Factory | Evolved 2 slots: Utility x2 4434 | -7/Factory | Discovered new exit (range 14) 4476 | -7/Factory | Identified exit to Garrison 4480 | -7/Factory | Entered Garrison 4480 | -7/Garrison | Accompanied by 2 allies 4524 | -7/Garrison | Triggered checkpoint 4566 | -7/Garrison | Triggered checkpoint 4630 | -7/Garrison | Expanded RIF knowledge: Autooverride 4639 | -7/Garrison | Lost 4 allies 4665 | -7/Garrison | Garrison Relay disabled 4860 | -7/Garrison | Triggered checkpoint 4874 | -7/Garrison | Triggered checkpoint 4890 | -7/Garrison | Triggered checkpoint 4944 | -7/Garrison | Lost 5 parts (1p1n3w) 4971 | -7/Garrison | Destroyed 7 combat bots 5003 | -7/Garrison | Lost 3 parts (1p1n1w) 5100 | -7/Garrison | Triggered checkpoint 5109 | -7/Garrison | Core integrity fell below 50% 5320 | -7/Garrison | Garrison Relay disabled 5448 | -7/Garrison | Discovered new exit (range 15) 5547 | -7/Garrison | Build established: Scavenger-Gunner 5751 | -7/Garrison | Discovered new exit (range 10) 5802 | -7/Garrison | Triggered checkpoint 5868 | -7/Garrison | Triggered checkpoint 5887 | -7/Garrison | Garrison Relay disabled 5926 | -7/Garrison | Learned Factory security intel 6112 | -7/Garrison | Triggered checkpoint 6173 | -7/Garrison | Garrison Relay disabled 6177 | -7/Garrison | Build established: Scavenger-Mutant 6323 | -7/Garrison | Discovered new exit (range 9) 6350 | -7/Garrison | Triggered checkpoint 6391 | -7/Garrison | Garrison Relay disabled 6825 | -7/Garrison | Entered Factory 7053 | -7/Factory | Fabricated Carbon-fiber Leg (x2) 7180 | -7/Factory | Build established: Bothacker-Mutant 7383 | -7/Factory | Crushed by falling debris 7383 | -7/Factory | Core integrity fell below 20% 7414 | -7/Factory | Lost 3 parts (2u1w) 7495 | -7/Factory | Discovered new exit (range 11) 7511 | -7/Factory | Garrison activated, responded to threat 7527 | -7/Factory | Destroyed by G-47 Trooper with Particle Gun Last Messages --------------- 07497_ Destroyed Wheel. 07497_ Destroyed Unknown Storage. 07497_ K-01 Serf system corrupted by crushing effect. 07497_ K-01 Serf destroyed. 07497_ ALERT: Hostiles spotted, dispatching reinforcements to Terminal F018. 07499_ Acquired 8 matter. 07505_ |OMT6JA3QG7RJZD7:NYUQMR8 07510_ Mic. Fission Core destroyed. 07510_ ALERT: Hostiles spotted, dispatching reinforcements to Terminal F001. 07511_ Y-54 Guardian calls for garrison reinforcements. 07511_ ALERT: Activating Garrison Access F004. 07514_ Critical hit (Burn: +22). 07517_ Carbon-fiber Leg destroyed. 07522_ Imp. Carbon-fiber Leg destroyed. 07525_ Aluminum Leg destroyed. 07525_ Relay Coupler [Grunt] destroyed. Map ----- +----------------------------------------------------+ | ?????????????????????????????????????????????????? | | ?????????????????###+###?????????????????????????? | | ????????????###### #?????????????????????????? | | ???????###### #########?????????????????? | | ???????+ T ??????????????????? | | ????????????# #?????????????????????????? | | ???????####### [ #?????????????????????????? | | ???????#!! # ######????#????????????????????? | | ##?????#!! + #????! #????????????????????? | | #?????#!! # #?? #????????????????????? | | #?????# # # #????????????????????? | | #?????# + + #????????????????????? | | #?????# ####### # #????????????????????? | | #?????# ## # #?? #????????????????????? | | #?????# ## "" + #????###????????????????????? | | #?????#"####"# "" # #???????????????????????????? | | #######"###### "T # #???????????????* ??????????? | | # # ""?# #?#######????? ** ??????????? | | # # ""?# #?# ##### * !?????????? | | # # ??# ### " g ?????????? | | +# # ??# Y"T g g ????????? | | + # ???##### gg ?????????? | | # ##???????# ##### ?????????????? | | + #????????## ##???????????????????? | | # #?????????# #????????????????????? | | + #?????????#@ #????????????????????? | | ## #?????????# #????????????????????? | | # ##????????# #????????????????????? | | # ##???????? #???????????????????? | | ###############???????? Y ??????????????????? | | #?????????????????????? < ?????????????????? | | #?????????????????????? ????????????????? | | #?????????????????????# ## ???????????????? | | #?????????????????????#######? #??????????????? | | #?????????????????????????????? #??????????????? | | #?????????????????????????????? #??????????????? | | #??????????????????????????????? #??????????????? | | #???????????????????????????????????????????????? | | #???????????????????????????????????????????????? | | #???????????????????????????????????????????????? | | ##?????????????????????????????????????????T????? | | ##??????????????????????????????????????????????? | | ###??????????????????????????????????????????????? | | ?????????????????????????????????????????????????? | | ?????????????????????????????????????????????????? | | ?????????????????????????????????????????????????? | | ?????????????????????????????????????????????????? | | ?????????????????????????????????????????????????? | | ?????????????????????????????????????????????????? | | ?????????????????????????????????????????????????? | +----------------------------------------------------+ Best States ------------- Heat Dissipation 48 Energy Generation 18 Energy Capacity 290 Matter Stores 300 Matter Capacity 300 Sight Range 20 Terrain Scan Density 10 Corruption Block 8 Armor Coverage 375 Resistance: KI 20 Resistance: TH 20 Resistance: EX 20 Resistance: EM 20 Resistance: I 20 Resistance: S 20 Resistance: P 20 Core Shielding 20 Evasion (%) 50 Melee Accuracy 6 Recoil Reduction 4 Offensive Hacking 20 Defensive Hacking 10 Relay Coupler Types 2 Relay Coupler Value 57 Item Schematics ----------------- Carbon-fiber Leg | -7/Factory | Scanalyzed Robot Schematics ------------------ None Fabricated ------------ Carbon-fiber Leg | x2 | -7/Factory Alien Tech Used ----------------- None Achievements -------------- None Challenges ------------ None Game ------ Seed PlasmaImpulseTube Manual? 0 Play Time 00:54:13 Cumulative 184.3 hours Start 2024.10.15 @ 14:59:19 End 2024.10.15 @ 16:08:12 Sessions 1 Manual Loads 0 Difficulty Adventurer Special Mode None Game No. 218 Rogue 0 Adventurer 218 Explorer 0 Win Type - Total 0 Types 0/0/0/0/0/0/0/0/0 Lore% 59 Gallery% 56 Achievement% 45 Wizard Run 0 Options --------- Layout 2 ASCII 0 Keyboard 0 Movement Mouse Keybinds 0 Fullscreen 2 Font 48/Smallcaps Map View 50x44 Zoom Use 0% Tactical HUD 1 Map Filters NONE Filters NONE Steam 1 RUN: edcd9f74-5079-4887-8f0c-069205c7be30